Workbook

Sheet Conversion
B2: Convertion Table © Rocketwaveuk
V3: =Deci/100 -> 0
E4: Unlocked | V4: 0
C5: Th H T U • | E5: Use The Buttons To Set Or Adjust The Desired Value | V5: =Thou*1000 -> 0
K6: Lookup | L6: Value | M6: Con_Rate | N6: New Scale | V6: 0
K7: 1 | L7: Select Here | M7: 0 | N7: Converted To | V7: 0
C8: =V10 -> 1 | E8: Exchange Rate | K8: 2 | L8: <<< Length >>> | V8: 1
K9: 3 | L9: cm > Inches | M9: =Val_Total*0.3937 -> 0.3937 | N9: Inches | V9: 0
K10: 4 | L10: Metres > Feet | M10: =Val_Total*3.2808 -> 3.2808 | N10: Feet | V10: =True_Thou+Hund+Tens+Units+(Deci/100) -> 1
C11: =ROUND(VLOOKUP(E8,L6:N70,2,0),E20) -> 62.386 | E11: =VLOOKUP(E8,L6:N70,3,0) -> Philippine Peso | K11: 5 | L11: Metres > Yards | M11: =Val_Total/0.9144 -> 1.093613298 | N11: Yards | V11: =Conv_Answer -> 62.386
K12: 6 | L12: km > miles | M12: =Val_Total/1.609 -> 0.6215040398 | N12: Miles | V12: =QUOTIENT(Ans_Total,1000)*1000 -> 0
K13: 7 | L13: Inches > cm | M13: =Val_Total*2.54 -> 2.54 | N13: Centimetres | V13: =QUOTIENT(Ans_Total-Ans_Thou,100)*100 -> 0
C14: 1 | K14: 8 | L14: Inches > Feet | M14: =Val_Total/12 -> 0.08333333333 | N14: Feet | V14: =QUOTIENT(Ans_Total-Ans_Thou-Ans_Hund,10)*10 -> 60
K15: 9 | L15: Feet > Yards | M15: =Val_Total*0.3333 -> 0.3333 | N15: Yards | V15: =QUOTIENT(Ans_Total-Ans_Thou-Ans_Hund-Ans_Tens,1) -> 2
C16: Below You Can Set Exchange Currency To The £ | K16: 10 | L16: Feet > Metre | M16: =Val_Total*0.3048 -> 0.3048 | N16: Metres | V16: =Ans_Total-Ans_Thou-Ans_Hund-Ans_Tens-Ans_Units -> 0.386
C17: Philippine Peso | E17: =VLOOKUP(C17,Table!A2:B54,2,0) -> 62.385996 | K17: 11 | L17: Yards > Metres | M17: =Val_Total*0.9144 -> 0.9144 | N17: Metres | V17: =Ans_Thou/1000 -> 0
K18: 12 | L18: Yards > Feet | M18: =Val_Total*3 -> 3 | N18: Feet
C19: Set The Value For V.A.T % | E19: Set Answer Decimal Value | K19: 13 | L19: Yards > Miles | M19: =Val_Total/1760 -> 0.0005681818182 | N19: Miles
C20: 0.2 | E20: 3 | K20: 14 | L20: Chains > Yards | M20: =Val_Total*22 -> 22 | N20: Yards | V20: 5
K21: 15 | L21: Furlong > Miles | M21: =Val_Total/8 -> 0.125 | N21: Miles | V21: 700
K22: 16 | L22: Miles > Km | M22: =Val_Total*1.609 -> 1.609 | N22: Kilometres | V22: 50
K23: 17 | L23: <<< WEIGHTS >>> | V23: 4
K24: 18 | L24: Grams > Ounces | M24: =Val_Total*0.0353 -> 0.0353 | N24: Ounces | V24: 0.93
K25: 19 | L25: Kilos > lbs | M25: =Val_Total*2.2046 -> 2.2046 | N25: Pounds | V25: =Swap_Deci*100 -> 93
K26: 20 | L26: Kilos > Stones | M26: =Val_Total/6.3503 -> 0.1574728753 | N26: Stones
K27: 21 | L27: Ounces > Grams | M27: =Val_Total*28.35 -> 28.35 | N27: Grams
K28: 22 | L28: Ounces > Lbs | M28: =Val_Total/16 -> 0.0625 | N28: Pounds
K29: 23 | L29: Ibs > Ounces | M29: =Val_Total*16 -> 16 | N29: Ounces
K30: 24 | L30: lbs > Kilos | M30: =Val_Total*0.4536 -> 0.4536 | N30: Kilos
K31: 25 | L31: lbs > Stones | M31: =Val_Total/14 -> 0.07142857143 | N31: Stones
K32: 26 | L32: Stones > Kilos | M32: =Val_Total*6.3503 -> 6.3503 | N32: Kilos
K33: 27 | L33: Stone > Cwt | M33: =Val_Total/8 -> 0.125 | N33: Cwt
K34: 28 | L34: Tons > Stones | M34: =(Val_Total*10)*8 -> 80 | N34: Stones
K35: 29 | L35: <<< FLUIDS >>>
K36: 30 | L36: m`ltrs > Fluid oz | M36: =((Val_Total/1000)/0.568)*20 -> 0.03521126761 | N36: Fluid Oz
K37: 31 | L37: m'Litres > Pints | M37: =Val_Total/568 -> 0.00176056338 | N37: Pints
K38: 32 | L38: Litres > Pints | M38: =Val_Total/0.568 -> 1.76056338 | N38: Pints
K39: 33 | L39: Litres > Gallons | M39: =Val_Total/4.546 -> 0.2199736032 | N39: Gallons
K40: 34 | L40: Fluid oz > m`Ltrs | M40: =(Val_Total/20)*568 -> 28.4 | N40: m`Litres
K41: 35 | L41: Pints > m`Litres | M41: =Val_Total*568 -> 568 | N41: m`Litres
K42: 36 | L42: Pints > Litres | M42: =Val_Total*0.568 -> 0.568 | N42: Litres
K43: 37 | L43: Pints > Fluid Oz | M43: =Val_Total*20 -> 20 | N43: Fluid Ozs
K44: 38 | L44: Pints > Gallons | M44: =Val_Total/8 -> 0.125 | N44: Gallons
K45: 39 | L45: Gallons > Litres | M45: =Val_Total*4.546 -> 4.546 | N45: Litres
K46: 40 | L46: US Tablespoon/ml | M46: =Val_Total*14.7867648 -> 14.7867648 | N46: ml
K47: 41 | L47: UK Tablespoon/ml | M47: =Val_Total*17.7582 -> 17.7582 | N47: ml
K48: 42 | L48: Teaspoon/ml | M48: =Val_Total*5.91939 -> 5.91939 | N48: ml
K49: 43 | L49: Choose | M49: 0 | N49: Select Above
K50: 44 | L50: <<< TEMPERATURE >>>
K51: 45 | L51: Deg F > Deg C | M51: =(Val_Total-32)/1.8 -> -17.22222222 | N51: Centigrade
K52: 46 | L52: Deg C > Deg F | M52: =(Val_Total*1.8)+32 -> 33.8 | N52: Fahrenheit
K53: 47 | L53: <<< POWER >>>
K54: 48 | L54: Peek > Rms | M54: =Val_Total*0.707 -> 0.707 | N54: Root Mean Sq
K55: 49 | L55: Rms > Peek | M55: =(Val_Total/70.7)*100 -> 1.414427157 | N55: Peek Value
K56: 50 | L56: <<< CURRENCY >>>
K57: 51 | L57: Include V.A.T | M57: =(Val_Total*Vat_Value)+Val_Total -> 1.2 | N57: Inc V.A.T
K58: 52 | L58: Minus V.A.T | M58: =(Val_Total/((Vat_Value*100)+100))*100 -> 0.8333333333 | N58: Exc V.A.T
K59: 53 | L59: Exchange Rate | M59: =Val_Total*E17 -> 62.385996 | N59: =C17 -> Philippine Peso
K60: 54 | L60: <<< Formula >>>
K61: 55 | L61: Squared Num | M61: =Val_Total^2 -> 1 | N61: Squared
K62: 56 | L62: Cubed Num | M62: =Val_Total^3 -> 1 | N62: Cubed
K63: 57 | L63: Square Root Num | M63: =SQRT(Val_Total) -> 1 | N63: Square Root
K64: 58 | L64: Cube Root Num | M64: =Val_Total^(1/3) -> 1 | N64: Cube Root
K65: 59 | L65: Radius/Circumference | M65: =2*PI()*Val_Total -> 6.283185307 | N65: Circumference
K66: 60 | L66: Deg/Radians | M66: =Val_Total/57.2957 -> 0.01745331674 | N66: Radians
K67: 61 | L67: Radians/Deg | M67: =Val_Total*57.2957 -> 57.2957 | N67: Degrees
K68: 62 | L68: PI * Number | M68: =Val_Total*PI() -> 3.141592654 | N68: Number Result
K69: 63 | L69: 1/X | M69: =1/Val_Total -> 1 | N69: Decimal
K70: 64 | L70: Peek/RMS | M70: =Val_Total*0.707 -> 0.707 | N70: Rms Value
K71: 65 | L71: Spare | M71: =Val_Total -> 1 | N71: None
K72: 66 | L72: Spare | M72: 1 | N72: None
K73: 67 | L73: Spare | M73: 1 | N73: None
K74: 68 | L74: Spare | M74: 1 | N74: None
K75: 69 | L75: Spare | M75: 1 | N75: None
K76: 70 | L76: Spare | M76: 1 | N76: None
K77: 71 | L77: Spare | M77: 1 | N77: None
K78: 72 | L78: Spare | M78: 1 | N78: None
K79: 73 | L79: Spare | M79: 1 | N79: None
K80: 74 | L80: Spare | M80: 1 | N80: None
K81: 75 | L81: Spare | M81: 1 | N81: None
K82: 76 | L82: Spare | M82: 1 | N82: None
K83: 77 | L83: Spare | M83: 1 | N83: None
K84: 78 | L84: Spare | M84: 1 | N84: None
K85: 79 | L85: Spare | M85: 1 | N85: None
K86: 80 | L86: Spare | M86: 1 | N86: None
K87: 81 | L87: Spare | M87: 1 | N87: None
K88: 82 | L88: Spare | M88: 1 | N88: None
K89: 83 | L89: Spare | M89: 1 | N89: None
K90: 84 | L90: Spare | M90: 1 | N90: None
K91: 85 | L91: Spare | M91: 1 | N91: None
K92: 86 | L92: Spare | M92: 1 | N92: None
K93: 87 | L93: Spare | M93: 1 | N93: None
K94: 88 | L94: Spare | M94: 1 | N94: None
K95: 89 | L95: Spare | M95: 1 | N95: None
K96: 90 | L96: Spare | M96: 1 | N96: None
K97: 91 | L97: Spare | M97: 1 | N97: None
K98: 92
K99: 93
K100: 94
K101: 95
K102: 96
K103: 97
K104: 98
K105: 99
K106: 100

Sheet Table (hidden)
A1: British Pound | B1: 1.00 GBP | C1: inv. 1.00 GBP
A2: Argentine Peso | B2: 82.681109 | C2: 0.012095
A3: Australian Dollar | B3: 1.924399 | C3: 0.519643
A4: Bahraini Dinar | B4: 0.46337 | C4: 2.158104
A5: Botswana Pula | B5: 14.914621 | C5: 0.067048
A6: Brazilian Real | B6: 7.043881 | C6: 0.141967
A7: Bruneian Dollar | B7: 1.751808 | C7: 0.570839
A8: Bulgarian Lev | B8: 2.232555 | C8: 0.447917
A9: Canadian Dollar | B9: 1.743655 | C9: 0.573508
A10: Chilean Peso | B10: 1039.066827 | C10: 0.000962
A11: Chinese Yuan Renminbi | B11: 8.754844 | C11: 0.114222
A12: Colombian Peso | B12: 4881.616598 | C12: 0.000205
A13: Croatian Kuna | B13: 8.64111 | C13: 0.115726
A14: Czech Koruna | B14: 30.947525 | C14: 0.032313
A15: Danish Krone | B15: 8.515876 | C15: 0.117428
A16: Euro | B16: 1.141487 | C16: 0.87605
A17: Hong Kong Dollar | B17: 9.553248 | C17: 0.104676
A18: Hungarian Forint | B18: 400.336579 | C18: 0.002498
A19: Icelandic Krona | B19: 181.610296 | C19: 0.005506
A20: Indian Rupee | B20: 94.01992 | C20: 0.010636
A21: Indonesian Rupiah | B21: 18575.75591 | C21: 5.4e-05
A22: Iranian Rial | B22: 51843.77695 | C22: 1.9e-05
A23: Israeli Shekel | B23: 4.331667 | C23: 0.230858
A24: Japanese Yen | B24: 130.927619 | C24: 0.007638
A25: Kazakhstani Tenge | B25: 519.348518 | C25: 0.001925
A26: South Korean Won | B26: 1512.991177 | C26: 0.000661
A27: Kuwaiti Dinar | B27: 0.381106 | C27: 2.623942
A28: Libyan Dinar | B28: 1.738729 | C28: 0.575133
A29: Malaysian Ringgit | B29: 5.329166 | C29: 0.187647
A30: Mauritian Rupee | B30: 49.144914 | C30: 0.020348
A31: Mexican Peso | B31: 30.09251 | C31: 0.033231
A32: Nepalese Rupee | B32: 151.137021 | C32: 0.006617
A33: New Zealand Dollar | B33: 2.046877 | C33: 0.488549
A34: Norwegian Krone | B34: 12.661619 | C34: 0.078979
A35: Omani Rial | B35: 0.473845 | C35: 2.110396
A36: Pakistani Rupee | B36: 195.978989 | C36: 0.005103
A37: Philippine Peso | B37: 62.385996 | C37: 0.016029
A38: Polish Zloty | B38: 5.193542 | C38: 0.192547
A39: Qatari Riyal | B39: 4.485813 | C39: 0.222925
A40: Romanian New Leu | B40: 5.507377 | C40: 0.181575
A41: Russian Ruble | B41: 91.765774 | C41: 0.010897
A42: Saudi Arabian Riyal | B42: 4.621373 | C42: 0.216386
A43: Singapore Dollar | B43: 1.751808 | C43: 0.570839
A44: South African Rand | B44: 23.128866 | C44: 0.043236
A45: Sri Lankan Rupee | B45: 230.418949 | C45: 0.00434
A46: Swedish Krona | B46: 12.135903 | C46: 0.0824
A47: Swiss Franc | B47: 1.202132 | C47: 0.831855
A48: Taiwan New Dollar | B48: 36.990887 | C48: 0.027034
A49: Thai Baht | B49: 39.960313 | C49: 0.025025
A50: Trinidadian Dollar | B50: 8.29508 | C50: 0.120553
A51: Turkish Lira | B51: 8.880247 | C51: 0.112609
A52: Emirati Dirham | B52: 4.525865 | C52: 0.220952
A53: US Dollar | B53: 1.232366 | C53: 0.811447
A54: Venezuelan Bolivar | B54: 12.308257 | C54: 0.081246
